[Event "Turkey IS Bank Super League 2017"]
[Site "Darica-Kocaeli"]
[Date "2017.08.03"]
[Round "8"]
[White "Sevgi, Volkan"]
[Black "Temizkan, D.."]
[Result "1/2-1/2"]
[ECO "A07"]
[WhiteElo "2199"]
[BlackElo "2214"]
[Annotator "ChessBase"]
[PlyCount "108"]
[EventType "team-tourn"]
[EventCountry "TUR"]
[TimeControl "40/5400+30:1800+30"]

1. Nf3 {[%emt 0:00:30]} d5 {[%emt 0:01:00]} 2. g3 {[%emt 0:00:30]} Nf6 {[%emt 0:00:30]} 3. Bg2 {[%emt 0:00:00]} Bg4 {[%emt 0:00:30]} 4. c4 {[%emt 0:00:00]} c6 {[%emt 0:00:00]} 5. b3 {[%emt 0:00:30]} Nbd7 {[%emt 0:02:00]} 6. Bb2 {[%emt 0:00:30]} Bxf3 {[%emt 0:01:30]} 7. Bxf3 {[%emt 0:01:30]} e5 {[%emt 0:00:30]} 8. O-O {[%emt 0:04:30]} Bd6 {[%emt 0:00:30]} 9. d3 {[%emt 0:06:30]} O-O {[%emt 0:04:30]} 10. cxd5 {[%emt 0:02:30]} cxd5 {[%emt 0:02:30]} 11. Nc3 {[%emt 0:00:30]} Nb6 {[%emt 0:00:00]} 12. a4 {[%emt 0:02:30]} Bb4 {[%emt 0:08:00]} 13. a5 {[%emt 0:00:30]} Nc8 {[%emt 0:02:30]} 14. a6 {[%emt 0:02:30]} Rb8 {[%emt 0:03:30]} 15. Qc1 {[%emt 0:14:30]} bxa6 {[%emt 0:01:30]} 16. Rxa6 {[%emt 0:00:30]} Rb6 {[%emt 0:10:30]} 17. Rxb6 {[%emt 0:01:30]} axb6 {[%emt 0:01:30]} 18. Nb5 {[%emt 0:20:30]} Qd7 {[%emt 0:17:30]} 19. Nc7 {[%emt 0:00:30]} d4 {[%emt 0:00:30]} 20. Qc4 {[%emt 0:02:30]} Bc5 {[%emt 0:04:30]} 21. Na6 {[%emt 0:01:30]} Bd6 {[%emt 0:02:30]} 22. Qc6 {[%emt 0:15:30]} Qxc6 {[%emt 0:07:30]} 23. Bxc6 {[%emt 0:00:30]} Ne7 {[%emt 0:00:30]} 24. Bb7 {[%emt 0:00:00]} Rd8 {[%emt 0:00:00]} 25. Rc1 {[%emt 0:02:00]} Rd7 {[%emt 0:09:00]} 26. Bc6 {[%emt 0:00:36]} Ra7 {[%emt 0:00:30]} 27. Bb5 {[%emt 0:00:24]} Nfd5 {[%emt 0:05:11]} 28. f4 {[%emt 0:02:55]} h5 {[%emt 0:05:18]} 29. e4 {[%emt 0:05:01]} Ne3 {[%emt 0:01:43]} 30. fxe5 {[%emt 0:09:53]} Bxe5 {[%emt 0:00:30]} 31. Ba3 {[%emt 0:00:00]} g5 {[%emt 0:03:27]} 32. Bb4 {[%emt 0:02:47]} h4 {[%emt 0:01:47]} 33. Be1 {[%emt 0:00:25]} hxg3 {[%emt 0:01:13]} 34. hxg3 {[%emt 0:00:14]} Kg7 {[%emt 0:01:52]} 35. Bd2 {[%emt 0:02:13]} Bxg3 {[%emt 0:00:38]} 36. Bxe3 {[%emt 0:00:01]} dxe3 {[%emt 0:00:21]} 37. d4 {[%emt 0:00:00]} f5 {[%emt 0:00:27]} 38. Kg2 {[%emt 0:00:10]} Bf4 {[%emt 0:01:04]} 39. e5 {[%emt 0:00:37]} g4 {[%emt 0:01:18]} 40. Nb4 {[%emt 0:00:00]} Ng6 {[%emt 0:02:11]} 41. Be2 {[%emt 0:05:44]} Nh4+ {[%emt 0:04:30]} 42. Kf1 {[%emt 0:00:30]} Rd7 {[%emt 0:04:30]} 43. e6 {[%emt 0:06:30]} Rxd4 {[%emt 0:02:55]} 44. e7 {[%emt 0:00:00]} Re4 {[%emt 0:05:29]} 45. Rc4 {[%emt 0:02:00]} Rxe7 {[%emt 0:03:17]} 46. Rxf4 {[%emt 0:00:00]} Kg6 {[%emt 0:01:24]} 47. Nd5 {[%emt 0:06:07]} Re5 {[%emt 0:00:09]} 48. Rd4 {[%emt 0:02:49]} Kg5 {[%emt 0:02:06]} 49. Nxb6 {[%emt 0:02:02]} f4 {[%emt 0:01:16]} 50. Nc4 {[%emt 0:00:03]} Nf5 {[%emt 0:03:33]} 51. Rd8 {[%emt 0:06:47]} Re7 {[%emt 0:00:06]} 52. Rg8+ {[%emt 0:00:09]} Ng7 {[%emt 0:02:05]} 53. Ne5 {[%emt 0:02:12]} f3 {[%emt 0:00:50]} 54. Bxf3 {[%emt 0:00:15]} gxf3 {[%emt 0:00:00]} 1/2-1/2

[Event "Turkey IS Bank Super League 2017"]
[Site "Darica-Kocaeli"]
[Date "2017.08.03"]
[Round "8"]
[White "Bolat, Ahmet"]
[Black "Burcu, Cagatay"]
[Result "0-1"]
[ECO "C00"]
[WhiteElo "2178"]
[BlackElo "2268"]
[Annotator "ChessBase"]
[PlyCount "62"]
[EventType "team-tourn"]
[EventCountry "TUR"]
[TimeControl "40/5400+30:1800+30"]

1. e4 {[%emt 0:01:30]} e6 {[%emt 0:01:00]} 2. b3 {[%emt 0:00:30]} d5 {[%emt 0:00:30]} 3. Bb2 {[%emt 0:00:30]} Nc6 {[%emt 0:01:30]} 4. exd5 {[%emt 0:04:30]} exd5 {[%emt 0:00:30]} 5. Nf3 {[%emt 0:00:30]} Nf6 {[%emt 0:00:30]} 6. Bb5 {[%emt 0:00:30]} Bd6 {[%emt 0:04:30]} 7. O-O {[%emt 0:00:30]} O-O {[%emt 0:00:30]} 8. h3 {[%emt 0:04:30]} Ne7 {[%emt 0:08:30]} 9. Bxf6 {[%emt 0:02:30]} gxf6 {[%emt 0:00:00]} 10. Re1 {[%emt 0:05:30]} Ng6 {[%emt 0:03:00]} 11. Bf1 {[%emt 0:03:30]} Be6 {[%emt 0:07:30]} 12. c4 {[%emt 0:04:30]} c6 {[%emt 0:18:30]} 13. Nc3 {[%emt 0:00:00]} a6 {[%emt 0:03:30]} 14. Qc2 {[%emt 0:10:00]} f5 {[%emt 0:04:30]} 15. cxd5 {[%emt 0:15:30]} cxd5 {[%emt 0:00:30]} 16. Ne2 {[%emt 0:00:30]} Qf6 {[%emt 0:05:30]} 17. Qc3 {[%emt 0:01:30]} Ne5 {[%emt 0:04:30]} 18. Nf4 {[%emt 0:07:30]} Rac8 {[%emt 0:08:30]} 19. Qe3 {[%emt 0:02:30]} Nxf3+ {[%emt 0:01:30]} 20. Qxf3 {[%emt 0:00:30]} Rfd8 {[%emt 0:01:30]} 21. Bd3 {[%emt 0:02:30]} Qh6 {[%emt 0:01:30]} 22. Nxe6 {[%emt 0:09:30]} fxe6 {[%emt 0:00:30]} 23. Re2 {[%emt 0:00:30]} Rc6 {[%emt 0:03:30]} 24. g3 {[%emt 0:14:38]} Bb4 {[%emt 0:02:22]} 25. Kg2 {[%emt 0:04:05]} Qf6 {[%emt 0:05:52]} 26. Rae1 {[%emt 0:00:17]} Rf8 {[%emt 0:05:31]} 27. Rxe6 {[%emt 0:02:49]} Rxe6 {[%emt 0:01:18]} 28. Qxd5 {[%emt 0:00:02]} Rd8 {[%emt 0:00:25]} 29. Qc4 {[%emt 0:02:37]} b5 {[%emt 0:00:40]} 30. Rxe6 {[%emt 0:00:34]} bxc4 {[%emt 0:00:07]} 31. Rxf6 {[%emt 0:00:36]} cxd3 {[%emt 0:00:07]} 0-1

[Event "Turkey IS Bank Super League 2017"]
[Site "Darica-Kocaeli"]
[Date "2017.08.03"]
[Round "8"]
[White "Dolgun, Can"]
[Black "Ozen, Bahadir"]
[Result "1/2-1/2"]
[ECO "B07"]
[WhiteElo "2104"]
[BlackElo "2315"]
[Annotator "ChessBase"]
[PlyCount "78"]
[EventType "team-tourn"]
[EventCountry "TUR"]
[TimeControl "40/5400+30:1800+30"]

1. e4 {[%emt 0:00:30]} g6 {[%emt 0:02:00]} 2. d4 {[%emt 0:00:30]} Bg7 {[%emt 0:00:30]} 3. Nf3 {[%emt 0:00:00]} d6 {[%emt 0:00:00]} 4. Bd3 {[%emt 0:00:00]} Nd7 {[%emt 0:00:00]} 5. O-O {[%emt 0:01:30]} e5 {[%emt 0:00:30]} 6. c3 {[%emt 0:02:30]} Ngf6 {[%emt 0:00:30]} 7. h3 {[%emt 0:03:30]} O-O {[%emt 0:00:30]} 8. Nbd2 {[%emt 0:01:30]} b6 {[%emt 0:01:30]} 9. Nc4 {[%emt 0:11:30]} Bb7 {[%emt 0:06:30]} 10. Re1 {[%emt 0:13:30]} exd4 {[%emt 0:03:30]} 11. cxd4 {[%emt 0:02:30]} Nxe4 {[%emt 0:04:30]} 12. Rxe4 {[%emt 0:06:30]} d5 {[%emt 0:00:30]} 13. Re1 {[%emt 0:02:30]} dxc4 {[%emt 0:00:00]} 14. Bxc4 {[%emt 0:00:00]} Nf6 {[%emt 0:23:00]} 15. Bg5 {[%emt 0:21:00]} Qd6 {[%emt 0:03:30]} 16. Bxf6 {[%emt 0:07:30]} Bxf3 {[%emt 0:09:30]} 17. Be7 {[%emt 0:01:30]} Bxd1 {[%emt 0:00:00]} 18. Bxd6 {[%emt 0:00:30]} cxd6 {[%emt 0:00:00]} 19. Raxd1 {[%emt 0:00:30]} Rfe8 {[%emt 0:05:30]} 20. Rxe8+ {[%emt 0:05:19]} Rxe8 {[%emt 0:00:30]} 21. b3 {[%emt 0:02:11]} d5 {[%emt 0:00:30]} 22. Bxd5 {[%emt 0:00:30]} Rd8 {[%emt 0:00:30]} 23. Bc4 {[%emt 0:00:30]} Rxd4 {[%emt 0:00:30]} 24. Rxd4 {[%emt 0:00:30]} Bxd4 {[%emt 0:00:30]} 25. Kf1 {[%emt 0:00:30]} Kg7 {[%emt 0:00:30]} 26. Ke2 {[%emt 0:00:30]} f5 {[%emt 0:00:30]} 27. f4 {[%emt 0:00:30]} h5 {[%emt 0:00:30]} 28. h4 {[%emt 0:00:15]} Kf6 {[%emt 0:01:30]} 29. Kf3 {[%emt 0:00:25]} a5 {[%emt 0:00:30]} 30. g3 {[%emt 0:00:25]} Ke7 {[%emt 0:00:30]} 31. a4 {[%emt 0:01:25]} Kf6 {[%emt 0:00:30]} 32. Bd5 {[%emt 0:00:21]} Ke7 {[%emt 0:00:30]} 33. Bc4 {[%emt 0:00:30]} Bh8 {[%emt 0:00:00]} 34. Bd5 {[%emt 0:00:12]} Ba1 {[%emt 0:00:00]} 35. Bc4 {[%emt 0:00:39]} Bd4 {[%emt 0:00:30]} 36. Bd5 {[%emt 0:00:00]} Kf8 {[%emt 0:01:30]} 37. Bc4 {[%emt 0:00:20]} Kg7 {[%emt 0:00:30]} 38. Bd5 {[%emt 0:00:30]} Kh8 {[%emt 0:00:00]} 39. Bf7 {[%emt 0:00:00]} Kg7 {[%emt 0:00:00]} 1/2-1/2

[Event "Turkey IS Bank Super League 2017"]
[Site "Darica-Kocaeli"]
[Date "2017.08.03"]
[Round "8"]
[White "Karagollu, Ahmet"]
[Black "Yaran, Siar"]
[Result "1/2-1/2"]
[ECO "B01"]
[WhiteElo "2083"]
[BlackElo "2253"]
[Annotator "ChessBase"]
[PlyCount "115"]
[EventType "team-tourn"]
[EventCountry "TUR"]
[TimeControl "40/5400+30:1800+30"]

1. e4 {[%emt 0:00:30]} d5 {[%emt 0:02:00]} 2. exd5 {[%emt 0:00:30]} Qxd5 {[%emt 0:00:30]} 3. Nc3 {[%emt 0:01:30]} Qd8 {[%emt 0:00:00]} 4. d4 {[%emt 0:01:30]} Nf6 {[%emt 0:03:00]} 5. Be2 {[%emt 0:03:30]} c6 {[%emt 0:01:30]} 6. Nf3 {[%emt 0:01:30]} Bg4 {[%emt 0:00:30]} 7. h3 {[%emt 0:02:30]} Bxf3 {[%emt 0:00:30]} 8. Bxf3 {[%emt 0:00:30]} e6 {[%emt 0:00:30]} 9. O-O {[%emt 0:02:30]} Be7 {[%emt 0:00:30]} 10. Rb1 {[%emt 0:05:30]} Qc7 {[%emt 0:02:30]} 11. Ne2 {[%emt 0:09:30]} Nbd7 {[%emt 0:05:30]} 12. Re1 {[%emt 0:06:30]} O-O {[%emt 0:01:30]} 13. c4 {[%emt 0:08:30]} Rad8 {[%emt 0:08:30]} 14. Bf4 {[%emt 0:10:30]} Bd6 {[%emt 0:04:30]} 15. Bxd6 {[%emt 0:01:30]} Qxd6 {[%emt 0:00:30]} 16. Qb3 {[%emt 0:00:30]} Qc7 {[%emt 0:01:30]} 17. Nc3 {[%emt 0:06:30]} e5 {[%emt 0:14:30]} 18. d5 {[%emt 0:02:30]} Rfe8 {[%emt 0:04:30]} 19. dxc6 {[%emt 0:02:30]} bxc6 {[%emt 0:00:30]} 20. Qa4 {[%emt 0:03:30]} Re6 {[%emt 0:00:00]} 21. Rbd1 {[%emt 0:05:30]} Rde8 {[%emt 0:00:00]} 22. Ne4 {[%emt 0:02:30]} Nxe4 {[%emt 0:00:30]} 23. Bxe4 {[%emt 0:00:30]} g6 {[%emt 0:00:30]} 24. b4 {[%emt 0:01:31]} Kg7 {[%emt 0:11:30]} 25. b5 {[%emt 0:01:08]} Nc5 {[%emt 0:02:30]} 26. Qc2 {[%emt 0:01:09]} Nxe4 {[%emt 0:00:30]} 27. Qxe4 {[%emt 0:00:00]} f5 {[%emt 0:04:30]} 28. Qe3 {[%emt 0:01:03]} R8e7 {[%emt 0:02:30]} 29. Qd3 {[%emt 0:02:37]} e4 {[%emt 0:02:30]} 30. Qd4+ {[%emt 0:01:24]} Qe5 {[%emt 0:04:30]} 31. a4 {[%emt 0:05:53]} Qxd4 {[%emt 0:07:26]} 32. Rxd4 {[%emt 0:00:02]} Re5 {[%emt 0:01:52]} 33. Rd6 {[%emt 0:01:43]} Rc5 {[%emt 0:03:08]} 34. Rxc6 {[%emt 0:00:49]} Rxc6 {[%emt 0:00:30]} 35. bxc6 {[%emt 0:00:00]} Rc7 {[%emt 0:00:00]} 36. Rb1 {[%emt 0:00:00]} Rxc6 {[%emt 0:02:01]} 37. Rb7+ {[%emt 0:00:30]} Kf6 {[%emt 0:00:00]} 38. Rxa7 {[%emt 0:00:00]} Rxc4 {[%emt 0:00:04]} 39. Rxh7 {[%emt 0:04:49]} Rxa4 {[%emt 0:00:30]} 40. g3 {[%emt 0:00:00]} g5 {[%emt 0:04:29]} 41. Rh6+ {[%emt 0:06:22]} Kg7 {[%emt 0:01:30]} 42. Rb6 {[%emt 0:00:30]} f4 {[%emt 0:04:30]} 43. gxf4 {[%emt 0:01:30]} gxf4 {[%emt 0:00:30]} 44. Kg2 {[%emt 0:01:30]} Ra2 {[%emt 0:01:30]} 45. Kf1 {[%emt 0:01:30]} f3 {[%emt 0:01:30]} 46. Ke1 {[%emt 0:03:30]} Re2+ {[%emt 0:01:30]} 47. Kf1 {[%emt 0:00:00]} Kf7 {[%emt 0:00:00]} 48. Ra6 {[%emt 0:00:00]} Rb2 {[%emt 0:01:00]} 49. Ke1 {[%emt 0:00:30]} Ke7 {[%emt 0:00:30]} 50. Rc6 {[%emt 0:00:30]} Re2+ {[%emt 0:00:30]} 51. Kf1 {[%emt 0:00:30]} Kd7 {[%emt 0:00:30]} 52. Ra6 {[%emt 0:00:30]} Rc2 {[%emt 0:00:30]} 53. Ke1 {[%emt 0:00:30]} Rb2 {[%emt 0:00:00]} 54. h4 {[%emt 0:00:30]} Ke7 {[%emt 0:02:00]} 55. h5 {[%emt 0:00:00]} Re2+ {[%emt 0:02:30]} 56. Kf1 {[%emt 0:00:00]} Kf7 {[%emt 0:01:30]} 57. h6 {[%emt 0:00:30]} Rb2 {[%emt 0:02:30]} 58. Ke1 {[%emt 0:00:00]} 1/2-1/2

[Event "Turkey IS Bank Super League 2017"]
[Site "Darica-Kocaeli"]
[Date "2017.08.03"]
[Round "8"]
[White "Celik, Eda"]
[Black "Ayazmali, Gizem"]
[Result "0-1"]
[ECO "E90"]
[WhiteElo "1939"]
[BlackElo "1849"]
[Annotator "NA"]
[PlyCount "117"]
[EventType "team-tourn"]
[EventCountry "TUR"]
[TimeControl "40/5400+30:1800+30"]

1. d4 {[%emt 0:00:30]} Nf6 {[%emt 0:01:00]} 2. c4 {[%emt 0:00:30]} g6 {[%emt 0:00:30]} 3. Nc3 {[%emt 0:00:30]} Bg7 {[%emt 0:00:30]} 4. e4 {[%emt 0:00:30]} d6 {[%emt 0:00:30]} 5. Nf3 {[%emt 0:00:00]} O-O {[%emt 0:00:00]} 6. Be2 {[%emt 0:00:00]} Nbd7 {[%emt 0:00:00]} 7. Be3 {[%emt 0:02:30]} c6 {[%emt 0:12:30]} 8. h3 {[%emt 0:07:30]} e5 {[%emt 0:04:30]} 9. d5 {[%emt 0:07:30]} c5 {[%emt 0:12:30]} 10. Nd2 {[%emt 0:05:30]} Ne8 {[%emt 0:04:30]} 11. g4 {[%emt 0:02:30]} Bf6 {[%emt 0:06:30]} 12. h4 {[%emt 0:07:30]} Ng7 {[%emt 0:14:30]} 13. g5 {[%emt 0:14:30]} Be7 {[%emt 0:00:00]} 14. Nf1 {[%emt 0:01:30]} f5 {[%emt 0:07:00]} 15. gxf6 {[%emt 0:02:30]} Nxf6 {[%emt 0:01:30]} 16. Ng3 {[%emt 0:00:30]} h5 {[%emt 0:00:30]} 17. Bg5 {[%emt 0:12:30]} Ng4 {[%emt 0:01:30]} 18. Bxg4 {[%emt 0:12:30]} Bxg4 {[%emt 0:00:30]} 19. Qd2 {[%emt 0:02:21]} Bxg5 {[%emt 0:00:30]} 20. hxg5 {[%emt 0:00:23]} Rf4 {[%emt 0:01:30]} 21. Rg1 {[%emt 0:09:21]} Qf8 {[%emt 0:02:30]} 22. Nf1 {[%emt 0:01:36]} Qe7 {[%emt 0:06:30]} 23. Nh2 {[%emt 0:02:48]} Bf3 {[%emt 0:04:34]} 24. Nxf3 {[%emt 0:00:48]} Rxf3 {[%emt 0:00:02]} 25. a3 {[%emt 0:04:16]} Raf8 {[%emt 0:00:30]} 26. Rg2 {[%emt 0:01:25]} Qd7 {[%emt 0:01:06]} 27. O-O-O {[%emt 0:01:10]} a6 {[%emt 0:00:11]} 28. Rh1 {[%emt 0:00:32]} b5 {[%emt 0:00:11]} 29. cxb5 {[%emt 0:00:25]} axb5 {[%emt 0:00:02]} 30. Nd1 {[%emt 0:00:17]} Qa7 {[%emt 0:02:09]} 31. Rg3 {[%emt 0:00:36]} R3f4 {[%emt 0:02:23]} 32. Re1 {[%emt 0:00:27]} Qa4 {[%emt 0:00:40]} 33. Qc2 {[%emt 0:00:26]} Qa5 {[%emt 0:00:27]} 34. Qd2 {[%emt 0:00:32]} Qb6 {[%emt 0:01:57]} 35. Kb1 {[%emt 0:00:33]} Ra8 {[%emt 0:04:56]} 36. Qc2 {[%emt 0:00:30]} c4 {[%emt 0:01:03]} 37. Qd2 {[%emt 0:00:30]} h4 {[%emt 0:01:06]} 38. Rh3 {[%emt 0:00:30]} Qc5 {[%emt 0:03:57]} 39. Qe3 {[%emt 0:00:31]} Qd4 {[%emt 0:03:29]} 40. Qxd4 {[%emt 0:00:48]} exd4 {[%emt 0:00:17]} 41. f3 {[%emt 0:07:45]} Raf8 {[%emt 0:00:30]} 42. Reh1 {[%emt 0:05:15]} Rxf3 {[%emt 0:00:30]} 43. Rxh4 {[%emt 0:00:15]} Nh5 {[%emt 0:00:30]} 44. Kc2 {[%emt 0:03:35]} Rg3 {[%emt 0:02:30]} 45. R1h2 {[%emt 0:04:07]} Rf1 {[%emt 0:08:30]} 46. Rd2 {[%emt 0:03:05]} d3+ {[%emt 0:09:27]} 47. Kc3 {[%emt 0:00:24]} Rgg1 {[%emt 0:02:20]} 48. Ne3 {[%emt 0:01:21]} Rc1+ {[%emt 0:00:15]} 49. Kb4 {[%emt 0:00:51]} Rge1 {[%emt 0:00:28]} 50. Ng4 {[%emt 0:00:51]} Re2 {[%emt 0:01:07]} 51. Rh2 {[%emt 0:01:24]} Rxd2 {[%emt 0:00:55]} 52. Rxd2 {[%emt 0:00:05]} Rc2 {[%emt 0:00:00]} 53. Rf2 {[%emt 0:03:24]} Kg7 {[%emt 0:09:06]} 54. Kxb5 {[%emt 0:00:32]} Ng3 {[%emt 0:01:05]} 55. a4 {[%emt 0:03:32]} Nxe4 {[%emt 0:00:29]} 56. Rf1 {[%emt 0:01:00]} Rxb2+ {[%emt 0:00:30]} 57. Kxc4 {[%emt 0:00:43]} Nc5 {[%emt 0:01:05]} 58. Rd1 {[%emt 0:00:33]} Rc2+ {[%emt 0:00:45]} 59. Kd4 {[%emt 0:01:03]} 0-1

[Event "Turkey IS Bank Super League 2017"]
[Site "Darica-Kocaeli"]
[Date "2017.08.03"]
[Round "8"]
[White "Yassibag, Ipek Asli"]
[Black "Ayan, Bengu Sena"]
[Result "1/2-1/2"]
[ECO "C04"]
[WhiteElo "1880"]
[BlackElo "1862"]
[Annotator "NA"]
[PlyCount "97"]
[EventType "team-tourn"]
[EventCountry "TUR"]
[TimeControl "40/5400+30:1800+30"]

1. e4 {[%emt 0:00:30]} e6 {[%emt 0:02:00]} 2. d4 {[%emt 0:00:30]} d5 {[%emt 0:00:00]} 3. Nd2 {[%emt 0:00:30]} Nc6 {[%emt 0:03:00]} 4. Ngf3 {[%emt 0:01:30]} Nf6 {[%emt 0:00:30]} 5. e5 {[%emt 0:00:30]} Nd7 {[%emt 0:00:30]} 6. Nb3 {[%emt 0:01:30]} a5 {[%emt 0:00:00]} 7. a4 {[%emt 0:01:30]} b6 {[%emt 0:00:00]} 8. Bb5 {[%emt 0:04:30]} Na7 {[%emt 0:00:30]} 9. Be2 {[%emt 0:08:30]} c5 {[%emt 0:16:30]} 10. c3 {[%emt 0:03:30]} Be7 {[%emt 0:04:30]} 11. Be3 {[%emt 0:03:30]} Bb7 {[%emt 0:04:30]} 12. O-O {[%emt 0:00:30]} Rc8 {[%emt 0:07:30]} 13. Nc1 {[%emt 0:07:30]} O-O {[%emt 0:06:30]} 14. Nd3 {[%emt 0:06:30]} Ba6 {[%emt 0:02:30]} 15. Nf4 {[%emt 0:03:30]} Bxe2 {[%emt 0:02:30]} 16. Qxe2 {[%emt 0:00:30]} Nc6 {[%emt 0:06:30]} 17. Nd3 {[%emt 0:05:30]} Qc7 {[%emt 0:06:30]} 18. Rac1 {[%emt 0:02:30]} Qb7 {[%emt 0:01:30]} 19. Rfd1 {[%emt 0:05:30]} b5 {[%emt 0:11:30]} 20. Nxc5 {[%emt 0:12:30]} Nxc5 {[%emt 0:00:30]} 21. dxc5 {[%emt 0:02:30]} bxa4 {[%emt 0:00:30]} 22. Ra1 {[%emt 0:01:30]} Nb8 {[%emt 0:05:29]} 23. Rxa4 {[%emt 0:01:30]} Bxc5 {[%emt 0:00:27]} 24. Rxa5 {[%emt 0:02:30]} Bxe3 {[%emt 0:01:00]} 25. fxe3 {[%emt 0:00:30]} Nc6 {[%emt 0:03:11]} 26. Ra4 {[%emt 0:04:47]} Rb8 {[%emt 0:01:47]} 27. Rd2 {[%emt 0:03:06]} Rfd8 {[%emt 0:03:21]} 28. Qf2 {[%emt 0:10:19]} Ra8 {[%emt 0:01:36]} 29. Rxa8 {[%emt 0:02:26]} Rxa8 {[%emt 0:00:04]} 30. h3 {[%emt 0:00:58]} Na5 {[%emt 0:00:32]} 31. b4 {[%emt 0:03:15]} Nc4 {[%emt 0:00:10]} 32. Ra2 {[%emt 0:00:34]} Rxa2 {[%emt 0:01:47]} 33. Qxa2 {[%emt 0:00:03]} Nxe3 {[%emt 0:00:00]} 34. Qa5 {[%emt 0:01:08]} h6 {[%emt 0:00:20]} 35. Qc5 {[%emt 0:00:22]} Nc4 {[%emt 0:00:35]} 36. Qd4 {[%emt 0:00:49]} Qa6 {[%emt 0:01:29]} 37. Nd2 {[%emt 0:00:32]} Na3 {[%emt 0:00:12]} 38. Nb3 {[%emt 0:00:32]} Qe2 {[%emt 0:04:55]} 39. Nc5 {[%emt 0:00:30]} Nb5 {[%emt 0:01:32]} 40. Qd3 {[%emt 0:00:00]} Qe1+ {[%emt 0:01:03]} 41. Qf1 {[%emt 0:02:39]} Qe3+ {[%emt 0:04:30]} 42. Kh1 {[%emt 0:03:30]} Nxc3 {[%emt 0:02:30]} 43. Nd7 {[%emt 0:01:30]} Ne4 {[%emt 0:19:00]} 44. Qa1 {[%emt 0:04:30]} h5 {[%emt 0:01:44]} 45. Qa8+ {[%emt 0:03:30]} Kh7 {[%emt 0:00:08]} 46. Nf8+ {[%emt 0:00:26]} Kh6 {[%emt 0:00:26]} 47. Nd7 {[%emt 0:00:54]} Qe1+ {[%emt 0:00:58]} 48. Kh2 {[%emt 0:00:06]} Qg3+ {[%emt 0:00:00]} 49. Kg1 {[%emt 0:00:13]} 1/2-1/2

[Event "Turkey IS Bank Super League 2017"]
[Site "Darica-Kocaeli"]
[Date "2017.08.03"]
[Round "8"]
[White "Incecik, Seyma Zeynep"]
[Black "Kargaci, Humeyra"]
[Result "0-1"]
[ECO "A30"]
[WhiteElo "1804"]
[BlackElo "1737"]
[Annotator "NA"]
[PlyCount "68"]
[EventType "team-tourn"]
[EventCountry "TUR"]
[TimeControl "40/5400+30:1800+30"]

1. b3 {[%emt 0:01:30]} Nf6 {[%emt 0:01:00]} 2. Bb2 {[%emt 0:00:30]} g6 {[%emt 0:00:30]} 3. c4 {[%emt 0:00:00]} Bg7 {[%emt 0:00:00]} 4. Nf3 {[%emt 0:00:00]} O-O {[%emt 0:01:00]} 5. g3 {[%emt 0:00:30]} b6 {[%emt 0:01:30]} 6. Bg2 {[%emt 0:01:30]} Bb7 {[%emt 0:00:30]} 7. O-O {[%emt 0:00:30]} c5 {[%emt 0:00:30]} 8. Na3 {[%emt 0:09:30]} Nc6 {[%emt 0:08:30]} 9. d4 {[%emt 0:07:30]} Nxd4 {[%emt 0:02:30]} 10. Nxd4 {[%emt 0:00:30]} Bxg2 {[%emt 0:00:00]} 11. Kxg2 {[%emt 0:00:30]} cxd4 {[%emt 0:00:00]} 12. Bxd4 {[%emt 0:06:30]} d5 {[%emt 0:05:30]} 13. f3 {[%emt 0:11:30]} e5 {[%emt 0:22:30]} 14. Bb2 {[%emt 0:28:30]} d4 {[%emt 0:05:30]} 15. Qd2 {[%emt 0:03:30]} Qd7 {[%emt 0:15:30]} 16. Rfd1 {[%emt 0:02:30]} Rad8 {[%emt 0:01:30]} 17. Rac1 {[%emt 0:02:30]} Qc6 {[%emt 0:06:30]} 18. Nc2 {[%emt 0:03:04]} Rd7 {[%emt 0:02:30]} 19. Nb4 {[%emt 0:04:56]} Qb7 {[%emt 0:01:30]} 20. c5 {[%emt 0:01:55]} bxc5 {[%emt 0:00:00]} 21. Nd3 {[%emt 0:00:44]} Re7 {[%emt 0:04:08]} 22. Nxc5 {[%emt 0:00:34]} Qa8 {[%emt 0:01:03]} 23. e4 {[%emt 0:10:39]} dxe3 {[%emt 0:04:43]} 24. Qxe3 {[%emt 0:00:14]} e4 {[%emt 0:05:20]} 25. Kg1 {[%emt 0:02:20]} Nd5 {[%emt 0:03:08]} 26. Qd2 {[%emt 0:00:18]} Bxb2 {[%emt 0:01:50]} 27. Qxb2 {[%emt 0:00:30]} exf3 {[%emt 0:00:00]} 28. Qd4 {[%emt 0:00:26]} Ne3 {[%emt 0:00:18]} 29. Rd2 {[%emt 0:00:32]} Nf5 {[%emt 0:01:55]} 30. Qf2 {[%emt 0:00:30]} Rfe8 {[%emt 0:01:25]} 31. Rd3 {[%emt 0:00:45]} Ne3 {[%emt 0:00:25]} 32. Re1 {[%emt 0:00:22]} Ng4 {[%emt 0:00:47]} 33. Rxe7 {[%emt 0:00:12]} Nxf2 {[%emt 0:00:08]} 34. Rxe8+ {[%emt 0:00:30]} Qxe8 {[%emt 0:00:00]} 0-1

[Event "Turkey IS Bank Super League 2017"]
[Site "Darica-Kocaeli"]
[Date "2017.08.03"]
[Round "8"]
[White "Yurdakul, Didem Nuray"]
[Black "Gundogan, Sinem Cagla"]
[Result "0-1"]
[ECO "C10"]
[WhiteElo "1697"]
[BlackElo "2000"]
[Annotator "NA"]
[PlyCount "98"]
[EventType "team-tourn"]
[EventCountry "TUR"]
[TimeControl "40/5400+30:1800+30"]

1. e4 {[%emt 0:00:30]} e6 {[%emt 0:02:00]} 2. d4 {[%emt 0:00:30]} d5 {[%emt 0:00:00]} 3. Nd2 {[%emt 0:00:30]} dxe4 {[%emt 0:00:00]} 4. Nxe4 {[%emt 0:00:00]} Nd7 {[%emt 0:00:30]} 5. Nf3 {[%emt 0:00:00]} Ngf6 {[%emt 0:00:00]} 6. Ng3 {[%emt 0:01:30]} Be7 {[%emt 0:05:00]} 7. Bd3 {[%emt 0:04:30]} c5 {[%emt 0:03:30]} 8. c3 {[%emt 0:01:30]} O-O {[%emt 0:03:30]} 9. O-O {[%emt 0:03:30]} b6 {[%emt 0:08:30]} 10. Qe2 {[%emt 0:18:30]} Bb7 {[%emt 0:06:30]} 11. Bd2 {[%emt 0:14:30]} Qc7 {[%emt 0:10:30]} 12. Rfe1 {[%emt 0:06:30]} Rfe8 {[%emt 0:09:30]} 13. Rac1 {[%emt 0:14:30]} Bd6 {[%emt 0:15:30]} 14. Ne5 {[%emt 0:05:30]} Rad8 {[%emt 0:03:30]} 15. Bg5 {[%emt 0:06:20]} Bxe5 {[%emt 0:12:56]} 16. dxe5 {[%emt 0:01:40]} Qxe5 {[%emt 0:03:01]} 17. Qxe5 {[%emt 0:01:52]} Nxe5 {[%emt 0:00:08]} 18. Bb5 {[%emt 0:03:34]} Nd3 {[%emt 0:04:44]} 19. Bxe8 {[%emt 0:04:52]} Rxe8 {[%emt 0:00:59]} 20. Bxf6 {[%emt 0:00:44]} Nxc1 {[%emt 0:00:44]} 21. Rxc1 {[%emt 0:00:39]} gxf6 {[%emt 0:00:00]} 22. Rd1 {[%emt 0:02:07]} Kf8 {[%emt 0:04:14]} 23. Rd7 {[%emt 0:03:09]} Bc6 {[%emt 0:00:09]} 24. Rxa7 {[%emt 0:01:40]} Rd8 {[%emt 0:00:06]} 25. f3 {[%emt 0:00:05]} Rd1+ {[%emt 0:00:20]} 26. Kf2 {[%emt 0:01:37]} Rd2+ {[%emt 0:00:07]} 27. Kg1 {[%emt 0:00:42]} Rxb2 {[%emt 0:00:53]} 28. Rc7 {[%emt 0:01:24]} Bd5 {[%emt 0:04:21]} 29. Nh5 {[%emt 0:00:52]} Bxa2 {[%emt 0:01:27]} 30. Nxf6 {[%emt 0:00:10]} Bb1 {[%emt 0:01:48]} 31. Nd7+ {[%emt 0:01:03]} Kg7 {[%emt 0:00:31]} 32. Ne5 {[%emt 0:00:09]} Bg6 {[%emt 0:00:00]} 33. Rd7 {[%emt 0:00:57]} Rc2 {[%emt 0:01:04]} 34. c4 {[%emt 0:00:26]} Re2 {[%emt 0:00:33]} 35. Nc6 {[%emt 0:01:09]} Kf6 {[%emt 0:00:46]} 36. h3 {[%emt 0:00:00]} Rc2 {[%emt 0:00:19]} 37. Rb7 {[%emt 0:00:05]} Rxc4 {[%emt 0:01:10]} 38. Rxb6 {[%emt 0:00:06]} Rc2 {[%emt 0:00:00]} 39. Kh2 {[%emt 0:00:51]} Bd3 {[%emt 0:00:16]} 40. Rb8 {[%emt 0:00:00]} Be2 {[%emt 0:01:24]} 41. Kg1 {[%emt 0:02:17]} Bd3 {[%emt 0:00:30]} 42. Rd8 {[%emt 0:07:30]} c4 {[%emt 0:04:30]} 43. Nb4 {[%emt 0:05:55]} Rc1+ {[%emt 0:00:30]} 44. Kf2 {[%emt 0:00:30]} Bg6 {[%emt 0:00:30]} 45. Rc8 {[%emt 0:02:30]} c3 {[%emt 0:01:30]} 46. Rc6 {[%emt 0:06:19]} c2 {[%emt 0:02:30]} 47. Ke2 {[%emt 0:04:29]} Rg1 {[%emt 0:01:30]} 48. Nxc2 {[%emt 0:00:42]} Rxg2+ {[%emt 0:00:30]} 49. Kd1 {[%emt 0:00:08]} Rxc2 {[%emt 0:00:30]} 0-1